[Event "Titled Tuesday Blitz December 20 Early 2022"]
[White "Mileo, Miguelito"]
[Black "Vsevolod_Ovchinnikov"]
[WhiteFideId "851108"]
[WhiteElo "1721"]
[BlackElo "2557"]
[Result "1-0"]
[Round "11"]
[TimeControl "180+2"]
[Date "2022.12.20"]
[WhiteClock "0:00:25"]
[BlackClock "0:00:07"]

1. d4 {[%clk 0:03:00]}  Nf6 {[%clk 0:03:00]} 2. Nf3 {[%clk 0:03:01]}  g6 {[%clk 0:03:00]} 3. c3 {[%clk 0:03:02]}  Bg7 {[%clk 0:03:00]} 4. Bg5 {[%clk 0:02:59]}  d5 {[%clk 0:02:59]} 5. Nbd2 {[%clk 0:02:58]}  Nbd7 {[%clk 0:02:58]} 6. e3 {[%clk 0:02:57]}  b6 {[%clk 0:02:59]} 7. Bd3 {[%clk 0:02:56]}  Bb7 {[%clk 0:02:59]} 8. Qe2 {[%clk 0:02:57]}  h6 {[%clk 0:02:59]} 9. Bh4 {[%clk 0:02:56]}  c5 {[%clk 0:02:49]} 10. O-O {[%clk 0:02:48]}  g5 {[%clk 0:02:41]} 11. Bg3 {[%clk 0:02:42]}  e6 {[%clk 0:02:29]} 12. e4 {[%clk 0:02:41]}  cxd4 {[%clk 0:02:22]} 13. Nxd4 {[%clk 0:02:34]}  dxe4 {[%clk 0:02:18]} 14. Nxe4 {[%clk 0:02:34]}  Nxe4 {[%clk 0:02:17]} 15. Bxe4 {[%clk 0:02:33]}  Bxe4 {[%clk 0:02:18]} 16. Qxe4 {[%clk 0:02:34]}  O-O {[%clk 0:02:16]} 17. Rad1 {[%clk 0:02:33]}  Nf6 {[%clk 0:02:09]} 18. Qe2 {[%clk 0:02:30]}  Qc8 {[%clk 0:02:07]} 19. h4 {[%clk 0:02:21]}  Rd8 {[%clk 0:01:57]} 20. hxg5 {[%clk 0:02:20]}  hxg5 {[%clk 0:01:58]} 21. Be5 {[%clk 0:02:20]}  Qc5 {[%clk 0:01:26]} 22. f4 {[%clk 0:02:18]}  Nh7 {[%clk 0:00:53]} 23. Rde1 {[%clk 0:02:00]}  Rd5 {[%clk 0:00:29]} 24. Bxg7 {[%clk 0:01:56]}  Kxg7 {[%clk 0:00:30]} 25. fxg5 {[%clk 0:01:29]}  Rxg5 {[%clk 0:00:29]} 26. Rxf7+ {[%clk 0:01:15]}  Kxf7 {[%clk 0:00:29]} 27. Qf3+ {[%clk 0:01:16]}  Nf6 {[%clk 0:00:20]} 28. Rf1 {[%clk 0:01:09]}  Rf5 {[%clk 0:00:10]} 29. Qb7+ {[%clk 0:01:00]}  Kg6 {[%clk 0:00:09]} 30. Qxa8 {[%clk 0:00:59]}  Rxf1+ {[%clk 0:00:09]} 31. Kxf1 {[%clk 0:00:59]}  e5 {[%clk 0:00:09]} 32. Nf3 {[%clk 0:00:55]}  Qc4+ {[%clk 0:00:08]} 33. Kg1 {[%clk 0:00:54]}  Qf4 {[%clk 0:00:08]} 34. Qh8 {[%clk 0:00:31]}  Qe3+ {[%clk 0:00:06]} 35. Kh1 {[%clk 0:00:28]}  Qc1+ {[%clk 0:00:06]} 36. Kh2 {[%clk 0:00:25]}  Qf4+ {[%clk 0:00:06]} 37. Kh1 {[%clk 0:00:23]}  Qc1+ {[%clk 0:00:06]} 38. Ng1 {[%clk 0:00:20]}  Qxb2 {[%clk 0:00:04]} 39. Nf3 {[%clk 0:00:18]}  Qc1+ {[%clk 0:00:04]} 40. Kh2 {[%clk 0:00:19]}  Qf4+ {[%clk 0:00:04]} 41. Kg1 {[%clk 0:00:20]}  Qc1+ {[%clk 0:00:04]} 42. Kf2 {[%clk 0:00:20]}  Qxc3 {[%clk 0:00:04]} 43. Nh4+ {[%clk 0:00:19]}  Kf7 {[%clk 0:00:04]} 44. Qd8 {[%clk 0:00:19]}  Qd4+ {[%clk 0:00:03]} 45. Qxd4 {[%clk 0:00:18]}  exd4 {[%clk 0:00:04]} 46. Nf5 {[%clk 0:00:19]}  d3 {[%clk 0:00:03]} 47. Ke3 {[%clk 0:00:19]}  Ke6 {[%clk 0:00:04]} 48. Nd4+ {[%clk 0:00:19]}  Kd5 {[%clk 0:00:03]} 49. Kxd3 {[%clk 0:00:20]}  Nd7 {[%clk 0:00:04]} 50. Nb5 {[%clk 0:00:20]}  a6 {[%clk 0:00:04]} 51. Nc7+ {[%clk 0:00:20]}  Ke5 {[%clk 0:00:03]} 52. Nxa6 {[%clk 0:00:21]}  Kf4 {[%clk 0:00:04]} 53. Ke2 {[%clk 0:00:20]}  Kg3 {[%clk 0:00:05]} 54. Kf1 {[%clk 0:00:21]}  Nf6 {[%clk 0:00:05]} 55. Nb4 {[%clk 0:00:21]}  Ne4 {[%clk 0:00:05]} 56. Nd5 {[%clk 0:00:21]}  b5 {[%clk 0:00:05]} 57. Ne3 {[%clk 0:00:21]}  Nc3 {[%clk 0:00:05]} 58. a3 {[%clk 0:00:20]}  Nb1 {[%clk 0:00:04]} 59. Nc2 {[%clk 0:00:21]}  Nc3 {[%clk 0:00:04]} 60. Nd4 {[%clk 0:00:19]}  Kf4 {[%clk 0:00:03]} 61. Ne2+ {[%clk 0:00:19]}  Nxe2 {[%clk 0:00:03]} 62. Kxe2 {[%clk 0:00:20]}  Kg3 {[%clk 0:00:04]} 63. Kd3 {[%clk 0:00:20]}  Kxg2 {[%clk 0:00:05]} 64. Kd4 {[%clk 0:00:20]}  Kf3 {[%clk 0:00:05]} 65. Kc5 {[%clk 0:00:21]}  Ke4 {[%clk 0:00:06]} 66. Kxb5 {[%clk 0:00:21]}  Kd5 {[%clk 0:00:06]} 67. Kb6 {[%clk 0:00:22]}  Kd6 {[%clk 0:00:06]} 68. a4 {[%clk 0:00:23]}  Kd7 {[%clk 0:00:06]} 69. Kb7 {[%clk 0:00:23]}  Kd6 {[%clk 0:00:06]} 70. a5 {[%clk 0:00:24]}  Kc5 {[%clk 0:00:07]} 71. a6 {[%clk 0:00:25]} 1-0


[Site "https://www.chess.com"]

[Event "Titled Tuesday Blitz December 20 Early 2022"]
[White "Misanik, Peter"]
[Black "stollenmonster"]
[WhiteFideId "14921421"]
[WhiteElo "1785"]
[BlackElo "2932"]
[Result "0-1"]
[Round "11"]
[TimeControl "180+2"]
[Date "2022.12.20"]
[WhiteClock "0:00:02"]
[BlackClock "0:00:05"]

1. d4 {[%clk 0:03:00]}  Nf6 {[%clk 0:02:59]} 2. c4 {[%clk 0:03:00]}  e6 {[%clk 0:02:56]} 3. Nc3 {[%clk 0:03:01]}  d5 {[%clk 0:02:56]} 4. cxd5 {[%clk 0:03:01]}  Nxd5 {[%clk 0:02:57]} 5. e4 {[%clk 0:02:59]}  Nxc3 {[%clk 0:02:58]} 6. bxc3 {[%clk 0:03:00]}  b6 {[%clk 0:02:58]} 7. Nf3 {[%clk 0:02:59]}  Bb7 {[%clk 0:02:59]} 8. Bd3 {[%clk 0:03:00]}  Nd7 {[%clk 0:02:59]} 9. O-O {[%clk 0:03:00]}  Be7 {[%clk 0:02:59]} 10. a4 {[%clk 0:02:53]}  c5 {[%clk 0:02:58]} 11. d5 {[%clk 0:02:34]}  exd5 {[%clk 0:02:58]} 12. exd5 {[%clk 0:02:35]}  O-O {[%clk 0:02:58]} 13. c4 {[%clk 0:02:34]}  Bf6 {[%clk 0:02:58]} 14. Ra2 {[%clk 0:02:32]}  Qc7 {[%clk 0:02:55]} 15. Re2 {[%clk 0:02:29]}  Rfe8 {[%clk 0:02:54]} 16. Rfe1 {[%clk 0:02:30]}  Rxe2 {[%clk 0:02:52]} 17. Rxe2 {[%clk 0:02:29]}  Ne5 {[%clk 0:02:43]} 18. Nxe5 {[%clk 0:02:19]}  Bxe5 {[%clk 0:02:44]} 19. Qe1 {[%clk 0:02:03]}  Bxh2+ {[%clk 0:02:15]} 20. Kh1 {[%clk 0:02:03]}  Bd6 {[%clk 0:02:16]} 21. Bg5 {[%clk 0:00:34]}  Qd7 {[%clk 0:01:53]} 22. Be7 {[%clk 0:00:28]}  g6 {[%clk 0:01:37]} 23. Bxd6 {[%clk 0:00:26]}  Qxd6 {[%clk 0:01:37]} 24. Re7 {[%clk 0:00:27]}  Rb8 {[%clk 0:01:06]} 25. Qe3 {[%clk 0:00:26]}  Qf6 {[%clk 0:00:52]} 26. Rc7 {[%clk 0:00:17]}  Kf8 {[%clk 0:00:42]} 27. Qh6+ {[%clk 0:00:17]}  Kg8 {[%clk 0:00:41]} 28. Qe3 {[%clk 0:00:18]}  Kf8 {[%clk 0:00:36]} 29. Kg1 {[%clk 0:00:18]}  Bc8 {[%clk 0:00:23]} 30. Rxa7 {[%clk 0:00:14]}  Bg4 {[%clk 0:00:19]} 31. f3 {[%clk 0:00:12]}  Re8 {[%clk 0:00:17]} 32. Qh6+ {[%clk 0:00:11]}  Kg8 {[%clk 0:00:17]} 33. Be4 {[%clk 0:00:05]}  Bf5 {[%clk 0:00:12]} 34. Bxf5 {[%clk 0:00:02]}  Qxf5 {[%clk 0:00:13]} 35. Qh4 {[%clk 0:00:03]}  Qe5 {[%clk 0:00:09]} 36. Rb7 {[%clk 0:00:02]}  Qe3+ {[%clk 0:00:08]} 37. Kh2 {[%clk 0:00:02]}  Qe5+ {[%clk 0:00:08]} 38. Kh3 {[%clk 0:00:02]}  Qf5+ {[%clk 0:00:05]} 39. Kg3 {[%clk 0:00:03]}  Qe5+ {[%clk 0:00:05]} 40. Qf4 {[%clk 0:00:04]}  Qe1+ {[%clk 0:00:06]} 41. Kh2 {[%clk 0:00:04]}  Re7 {[%clk 0:00:05]} 42. Rxb6 {[%clk 0:00:03]}  Re5 {[%clk 0:00:04]} 43. Rb8+ {[%clk 0:00:02]}  Kg7 {[%clk 0:00:04]} 44. g4 {[%clk 0:00:01]}  Re2+ {[%clk 0:00:04]} 45. Kh3 {[%clk 0:00:02]}  Qh1+ {[%clk 0:00:05]} 0-1


[Site "https://www.chess.com"]

[Event "Titled Tuesday Blitz December 20 Early 2022"]
[White "Najdoski, Toni"]
[Black "Alphafischer2019"]
[WhiteFideId "15001334"]
[WhiteElo "2598"]
[BlackElo "2543"]
[Result "0-1"]
[Round "11"]
[TimeControl "180+2"]
[Date "2022.12.20"]
[WhiteClock "0:00:59"]
[BlackClock "0:01:44"]

1. e4 {[%clk 0:03:00]}  c5 {[%clk 0:02:59]} 2. Nc3 {[%clk 0:03:00]}  Nc6 {[%clk 0:02:59]} 3. Bb5 {[%clk 0:03:00]}  Nd4 {[%clk 0:02:59]} 4. Nf3 {[%clk 0:03:00]}  g6 {[%clk 0:02:59]} 5. O-O {[%clk 0:02:59]}  Bg7 {[%clk 0:03:00]} 6. Nxd4 {[%clk 0:02:58]}  cxd4 {[%clk 0:02:59]} 7. Ne2 {[%clk 0:02:58]}  a6 {[%clk 0:02:52]} 8. Bd3 {[%clk 0:02:57]}  d5 {[%clk 0:02:52]} 9. c3 {[%clk 0:02:24]}  dxe4 {[%clk 0:02:46]} 10. Bxe4 {[%clk 0:02:25]}  Nf6 {[%clk 0:02:39]} 11. Bf3 {[%clk 0:02:23]}  d3 {[%clk 0:02:32]} 12. Ng3 {[%clk 0:02:22]}  O-O {[%clk 0:02:31]} 13. Re1 {[%clk 0:02:18]}  Re8 {[%clk 0:02:25]} 14. Qa4 {[%clk 0:02:00]}  e5 {[%clk 0:02:16]} 15. b3 {[%clk 0:01:40]}  Bd7 {[%clk 0:02:02]} 16. Qh4 {[%clk 0:01:25]}  Bc6 {[%clk 0:01:58]} 17. Bxc6 {[%clk 0:01:11]}  bxc6 {[%clk 0:01:58]} 18. Ba3 {[%clk 0:01:09]}  Nd5 {[%clk 0:01:45]} 19. Bc5 {[%clk 0:00:59]}  Qxh4 {[%clk 0:01:44]} 0-1


[Site "https://www.chess.com"]

[Event "Titled Tuesday Blitz December 20 Early 2022"]
[White "Nakamura, Hikaru"]
[Black "Liaqat, Ali ISB"]
[WhiteFideId "2016192"]
[BlackFideId "7807058"]
[WhiteElo "2775"]
[BlackElo "1927"]
[Result "1-0"]
[Round "11"]
[TimeControl "180+2"]
[Date "2022.12.20"]
[WhiteClock "0:00:08"]
[BlackClock "0:00:04"]

1. e4 {[%clk 0:03:00]}  e6 {[%clk 0:03:00]} 2. d4 {[%clk 0:02:58]}  d5 {[%clk 0:03:00]} 3. Nd2 {[%clk 0:02:59]}  c5 {[%clk 0:03:00]} 4. exd5 {[%clk 0:02:59]}  Qxd5 {[%clk 0:03:01]} 5. dxc5 {[%clk 0:02:59]}  Nf6 {[%clk 0:03:00]} 6. Ngf3 {[%clk 0:02:57]}  Qxc5 {[%clk 0:03:01]} 7. Bd3 {[%clk 0:02:57]}  Nbd7 {[%clk 0:03:01]} 8. a4 {[%clk 0:02:55]}  Qc7 {[%clk 0:03:01]} 9. O-O {[%clk 0:02:53]}  Nc5 {[%clk 0:03:01]} 10. Bb5+ {[%clk 0:02:49]}  Bd7 {[%clk 0:03:01]} 11. Qe2 {[%clk 0:02:48]}  Be7 {[%clk 0:02:59]} 12. Ne5 {[%clk 0:02:45]}  Bxb5 {[%clk 0:02:55]} 13. axb5 {[%clk 0:02:34]}  O-O {[%clk 0:02:51]} 14. Ndc4 {[%clk 0:02:20]}  Ncd7 {[%clk 0:02:39]} 15. Bf4 {[%clk 0:02:12]}  Nxe5 {[%clk 0:02:18]} 16. Bxe5 {[%clk 0:02:05]}  Qc5 {[%clk 0:02:18]} 17. Na5 {[%clk 0:02:05]}  Qb6 {[%clk 0:02:01]} 18. Nb3 {[%clk 0:01:55]}  Rfd8 {[%clk 0:01:55]} 19. Ra4 {[%clk 0:01:47]}  a6 {[%clk 0:01:16]} 20. Rfa1 {[%clk 0:01:43]}  h6 {[%clk 0:00:54]} 21. h3 {[%clk 0:01:23]}  Nd7 {[%clk 0:00:28]} 22. Bd4 {[%clk 0:01:10]}  Qc7 {[%clk 0:00:29]} 23. bxa6 {[%clk 0:01:03]}  bxa6 {[%clk 0:00:30]} 24. Rxa6 {[%clk 0:01:03]}  Rxa6 {[%clk 0:00:30]} 25. Rxa6 {[%clk 0:01:04]}  Bf6 {[%clk 0:00:31]} 26. c3 {[%clk 0:00:45]}  Bxd4 {[%clk 0:00:28]} 27. Nxd4 {[%clk 0:00:46]}  Nf6 {[%clk 0:00:25]} 28. g3 {[%clk 0:00:30]}  Rb8 {[%clk 0:00:24]} 29. Nc6 {[%clk 0:00:28]}  Rc8 {[%clk 0:00:21]} 30. b4 {[%clk 0:00:26]}  Nd5 {[%clk 0:00:19]} 31. c4 {[%clk 0:00:25]}  Ne7 {[%clk 0:00:08]} 32. b5 {[%clk 0:00:25]}  Nf5 {[%clk 0:00:07]} 33. g4 {[%clk 0:00:22]}  Nh4 {[%clk 0:00:04]} 34. Qd3 {[%clk 0:00:16]}  Qf4 {[%clk 0:00:04]} 35. Qg3 {[%clk 0:00:12]}  Nf3+ {[%clk 0:00:02]} 36. Kg2 {[%clk 0:00:12]}  Ne1+ {[%clk 0:00:02]} 37. Kf1 {[%clk 0:00:11]}  Qc1 {[%clk 0:00:03]} 38. Qe3 {[%clk 0:00:12]}  Qxc4+ {[%clk 0:00:03]} 39. Kxe1 {[%clk 0:00:12]}  Qxb5 {[%clk 0:00:02]} 40. Ne7+ {[%clk 0:00:12]}  Kh8 {[%clk 0:00:03]} 41. Nxc8 {[%clk 0:00:12]}  Qxa6 {[%clk 0:00:03]} 42. Qc3 {[%clk 0:00:12]}  Qa8 {[%clk 0:00:02]} 43. Nd6 {[%clk 0:00:11]}  Qh1+ {[%clk 0:00:03]} 44. Ke2 {[%clk 0:00:11]}  f6 {[%clk 0:00:03]} 45. Qc8+ {[%clk 0:00:09]}  Kh7 {[%clk 0:00:04]} 46. Qxe6 {[%clk 0:00:10]}  Qxh3 {[%clk 0:00:04]} 47. Qe4+ {[%clk 0:00:11]}  Kh8 {[%clk 0:00:04]} 48. Nf5 {[%clk 0:00:11]}  Qa3 {[%clk 0:00:02]} 49. Ne7 {[%clk 0:00:10]}  Qa2+ {[%clk 0:00:01]} 50. Kf3 {[%clk 0:00:11]}  Qf7 {[%clk 0:00:02]} 51. Kg3 {[%clk 0:00:09]}  h5 {[%clk 0:00:02]} 52. Ng6+ {[%clk 0:00:09]}  Kh7 {[%clk 0:00:02]} 53. Ne5+ {[%clk 0:00:09]}  f5 {[%clk 0:00:02]} 54. Nxf7 {[%clk 0:00:05]}  fxe4 {[%clk 0:00:03]} 55. Ng5+ {[%clk 0:00:06]}  Kg6 {[%clk 0:00:03]} 56. Nxe4 {[%clk 0:00:06]}  hxg4 {[%clk 0:00:03]} 57. Kxg4 {[%clk 0:00:07]}  Kf7 {[%clk 0:00:04]} 58. f4 {[%clk 0:00:08]}  g5 {[%clk 0:00:04]} 59. Kxg5 {[%clk 0:00:08]} 1-0


[Site "https://www.chess.com"]

[Event "Titled Tuesday Blitz December 20 Early 2022"]
[White "Narayanan, Srinath"]
[Black "Castro Andrade, Seirbert Cristian"]
[WhiteFideId "5018420"]
[BlackFideId "3863336"]
[WhiteElo "2559"]
[BlackElo "1364"]
[Result "1-0"]
[Round "11"]
[TimeControl "180+2"]
[Date "2022.12.20"]
[WhiteClock "0:01:59"]
[BlackClock "0:02:07"]

1. d4 {[%clk 0:03:00]}  Nf6 {[%clk 0:02:59]} 2. Nf3 {[%clk 0:03:00]}  e6 {[%clk 0:02:59]} 3. Bf4 {[%clk 0:03:01]}  b6 {[%clk 0:02:58]} 4. e3 {[%clk 0:03:01]}  Bb7 {[%clk 0:02:59]} 5. Nbd2 {[%clk 0:03:00]}  Ne4 {[%clk 0:02:57]} 6. Nxe4 {[%clk 0:02:57]}  Bxe4 {[%clk 0:02:57]} 7. Bd3 {[%clk 0:02:58]}  Bxd3 {[%clk 0:02:57]} 8. Qxd3 {[%clk 0:02:55]}  Be7 {[%clk 0:02:50]} 9. h4 {[%clk 0:02:54]}  d6 {[%clk 0:02:48]} 10. h5 {[%clk 0:02:51]}  h6 {[%clk 0:02:48]} 11. d5 {[%clk 0:02:50]}  e5 {[%clk 0:02:42]} 12. Bg3 {[%clk 0:02:50]}  Nd7 {[%clk 0:02:43]} 13. Nd2 {[%clk 0:02:47]}  Nf6 {[%clk 0:02:39]} 14. e4 {[%clk 0:02:45]}  Qd7 {[%clk 0:02:39]} 15. f3 {[%clk 0:02:44]}  c6 {[%clk 0:02:36]} 16. dxc6 {[%clk 0:02:43]}  Qxc6 {[%clk 0:02:37]} 17. Nc4 {[%clk 0:02:42]}  O-O {[%clk 0:02:30]} 18. Ne3 {[%clk 0:02:42]}  Rfd8 {[%clk 0:02:29]} 19. O-O-O {[%clk 0:02:42]}  Rac8 {[%clk 0:02:28]} 20. Kb1 {[%clk 0:02:41]}  Rd7 {[%clk 0:02:27]} 21. Nf5 {[%clk 0:02:33]}  Bf8 {[%clk 0:02:27]} 22. Ne3 {[%clk 0:02:15]}  b5 {[%clk 0:02:24]} 23. Bf2 {[%clk 0:02:14]}  a5 {[%clk 0:02:23]} 24. g4 {[%clk 0:02:15]}  Rcd8 {[%clk 0:02:17]} 25. Bh4 {[%clk 0:02:15]}  Be7 {[%clk 0:02:17]} 26. Nf5 {[%clk 0:02:14]}  d5 {[%clk 0:02:12]} 27. exd5 {[%clk 0:02:07]}  Nxd5 {[%clk 0:02:07]} 28. Bxe7 {[%clk 0:01:59]}  Nxe7 {[%clk 0:02:07]} 29. Nxe7+ {[%clk 0:01:59]} 1-0


[Site "https://www.chess.com"]

[Event "Titled Tuesday Blitz December 20 Early 2022"]
[White "Ong, Chong Ghee"]
[Black "Nau, Guenter"]
[WhiteFideId "5800145"]
[BlackFideId "4661419"]
[WhiteElo "2307"]
[BlackElo "2205"]
[Result "0-1"]
[Round "11"]
[TimeControl "180+2"]
[Date "2022.12.20"]
[WhiteClock "0:00:11"]
[BlackClock "0:00:21"]

1. d4 {[%clk 0:03:00]}  Nf6 {[%clk 0:02:59]} 2. Bg5 {[%clk 0:03:01]}  d5 {[%clk 0:02:59]} 3. Bxf6 {[%clk 0:03:01]}  gxf6 {[%clk 0:03:00]} 4. e3 {[%clk 0:03:02]}  c5 {[%clk 0:02:59]} 5. g3 {[%clk 0:03:02]}  Nc6 {[%clk 0:02:59]} 6. c3 {[%clk 0:03:02]}  e5 {[%clk 0:02:58]} 7. Ne2 {[%clk 0:03:00]}  Be6 {[%clk 0:02:58]} 8. Bg2 {[%clk 0:03:00]}  Qd7 {[%clk 0:02:55]} 9. h4 {[%clk 0:02:58]}  Rg8 {[%clk 0:02:39]} 10. c4 {[%clk 0:02:26]}  dxc4 {[%clk 0:02:31]} 11. d5 {[%clk 0:02:24]}  O-O-O {[%clk 0:02:21]} 12. Nbc3 {[%clk 0:02:16]}  Nb4 {[%clk 0:02:08]} 13. dxe6 {[%clk 0:02:09]}  Nd3+ {[%clk 0:01:57]} 14. Kf1 {[%clk 0:02:09]}  fxe6 {[%clk 0:01:58]} 15. b3 {[%clk 0:01:40]}  Qc7 {[%clk 0:01:32]} 16. bxc4 {[%clk 0:01:29]}  Nxf2 {[%clk 0:01:22]} 17. Qb3 {[%clk 0:01:28]}  Nxh1 {[%clk 0:01:21]} 18. Bxh1 {[%clk 0:01:27]}  Bh6 {[%clk 0:01:15]} 19. Nb5 {[%clk 0:01:26]}  Qb6 {[%clk 0:01:10]} 20. Kf2 {[%clk 0:01:18]}  a6 {[%clk 0:01:05]} 21. Nbc3 {[%clk 0:01:16]}  Qxb3 {[%clk 0:01:03]} 22. axb3 {[%clk 0:01:17]}  Rd3 {[%clk 0:01:01]} 23. Be4 {[%clk 0:00:45]}  Rxe3 {[%clk 0:00:53]} 24. Bxh7 {[%clk 0:00:43]}  Rd8 {[%clk 0:00:49]} 25. g4 {[%clk 0:00:15]}  Bf4 {[%clk 0:00:38]} 26. Rg1 {[%clk 0:00:14]}  Rd2 {[%clk 0:00:37]} 27. g5 {[%clk 0:00:13]}  fxg5 {[%clk 0:00:35]} 28. hxg5 {[%clk 0:00:11]}  Rxc3 {[%clk 0:00:33]} 29. g6 {[%clk 0:00:11]}  Bh6 {[%clk 0:00:28]} 30. g7 {[%clk 0:00:10]}  Bxg7 {[%clk 0:00:26]} 31. Rxg7 {[%clk 0:00:11]}  Rxb3 {[%clk 0:00:25]} 32. Bg8 {[%clk 0:00:09]}  Rbb2 {[%clk 0:00:24]} 33. Bxe6+ {[%clk 0:00:09]}  Kb8 {[%clk 0:00:24]} 34. Bg4 {[%clk 0:00:10]}  a5 {[%clk 0:00:23]} 35. Bf3 {[%clk 0:00:10]}  a4 {[%clk 0:00:22]} 36. Rg8+ {[%clk 0:00:09]}  Ka7 {[%clk 0:00:22]} 37. Re8 {[%clk 0:00:10]}  a3 {[%clk 0:00:21]} 38. Rxe5 {[%clk 0:00:11]}  a2 {[%clk 0:00:21]} 39. Rxc5 {[%clk 0:00:11]}  a1=Q {[%clk 0:00:21]} 0-1


[Site "https://www.chess.com"]

[Event "Titled Tuesday Blitz December 20 Early 2022"]
[White "Patricks, Anastasia"]
[Black "Karttunen, Mika"]
[WhiteFideId "7101929"]
[BlackFideId "502081"]
[WhiteElo "1778"]
[BlackElo "2490"]
[Result "1-0"]
[Round "11"]
[TimeControl "180+2"]
[Date "2022.12.20"]
[WhiteClock "0:00:52"]
[BlackClock "0:00:24"]

1. b3 {[%clk 0:02:55]}  d5 {[%clk 0:02:59]} 2. Bb2 {[%clk 0:02:56]}  e6 {[%clk 0:02:59]} 3. Nf3 {[%clk 0:02:57]}  Nf6 {[%clk 0:03:00]} 4. e3 {[%clk 0:02:58]}  Be7 {[%clk 0:03:00]} 5. Be2 {[%clk 0:02:59]}  O-O {[%clk 0:03:01]} 6. O-O {[%clk 0:03:00]}  c5 {[%clk 0:03:01]} 7. c4 {[%clk 0:03:01]}  Nc6 {[%clk 0:03:02]} 8. cxd5 {[%clk 0:03:01]}  Nxd5 {[%clk 0:03:02]} 9. Nc3 {[%clk 0:03:02]}  Bf6 {[%clk 0:03:02]} 10. Rc1 {[%clk 0:03:02]}  Nxc3 {[%clk 0:03:01]} 11. dxc3 {[%clk 0:03:02]}  Qe7 {[%clk 0:02:59]} 12. Qc2 {[%clk 0:03:02]}  e5 {[%clk 0:02:57]} 13. Nd2 {[%clk 0:03:02]}  g6 {[%clk 0:02:56]} 14. Ba3 {[%clk 0:02:59]}  b6 {[%clk 0:02:56]} 15. b4 {[%clk 0:02:57]}  Bf5 {[%clk 0:02:53]} 16. Qa4 {[%clk 0:02:56]}  Bd7 {[%clk 0:02:46]} 17. Bb5 {[%clk 0:02:44]}  Rfc8 {[%clk 0:02:42]} 18. bxc5 {[%clk 0:02:44]}  a6 {[%clk 0:02:42]} 19. cxb6 {[%clk 0:02:40]}  axb5 {[%clk 0:02:19]} 20. Bxe7 {[%clk 0:02:36]}  Rxa4 {[%clk 0:02:19]} 21. Bxf6 {[%clk 0:02:34]}  Rb8 {[%clk 0:01:51]} 22. Ne4 {[%clk 0:01:48]}  Rxe4 {[%clk 0:01:50]} 23. Rfd1 {[%clk 0:01:42]}  Rb7 {[%clk 0:01:48]} 24. Rd6 {[%clk 0:01:42]}  Be8 {[%clk 0:00:59]} 25. Rcd1 {[%clk 0:01:42]}  Rc4 {[%clk 0:00:59]} 26. f4 {[%clk 0:01:34]}  exf4 {[%clk 0:00:51]} 27. exf4 {[%clk 0:01:35]}  Rxf4 {[%clk 0:00:51]} 28. Rxc6 {[%clk 0:01:34]}  Rc4 {[%clk 0:00:25]} 29. Rd8 {[%clk 0:01:00]}  Kf8 {[%clk 0:00:25]} 30. Rxc4 {[%clk 0:01:00]}  bxc4 {[%clk 0:00:25]} 31. Bd4 {[%clk 0:00:56]}  Ke7 {[%clk 0:00:25]} 32. Rc8 {[%clk 0:00:57]}  Bb5 {[%clk 0:00:24]} 33. Rc5 {[%clk 0:00:52]} 1-0


[Site "https://www.chess.com"]

[Event "Titled Tuesday Blitz December 20 Early 2022"]
[White "ProfessorChess101"]
[Black "Tobias_Koelle"]
[WhiteElo "2662"]
[BlackElo "2779"]
[Result "0-1"]
[Round "11"]
[TimeControl "180+2"]
[Date "2022.12.20"]
[WhiteClock "0:00:03"]
[BlackClock "0:01:20"]

1. d4 {[%clk 0:03:00]}  g6 {[%clk 0:02:45]} 2. e4 {[%clk 0:03:00]}  Bg7 {[%clk 0:02:46]} 3. Nc3 {[%clk 0:02:54]}  d6 {[%clk 0:02:45]} 4. Be3 {[%clk 0:02:54]}  Nc6 {[%clk 0:02:45]} 5. Nf3 {[%clk 0:02:50]}  e5 {[%clk 0:02:44]} 6. Qd2 {[%clk 0:02:49]}  Nge7 {[%clk 0:02:43]} 7. Bc4 {[%clk 0:02:39]}  O-O {[%clk 0:02:42]} 8. h4 {[%clk 0:02:30]}  Bg4 {[%clk 0:02:41]} 9. d5 {[%clk 0:02:25]}  Bxf3 {[%clk 0:02:38]} 10. gxf3 {[%clk 0:02:23]}  Nd4 {[%clk 0:02:39]} 11. Be2 {[%clk 0:02:20]}  h5 {[%clk 0:02:35]} 12. f4 {[%clk 0:02:10]}  c6 {[%clk 0:02:30]} 13. dxc6 {[%clk 0:02:03]}  bxc6 {[%clk 0:02:27]} 14. f5 {[%clk 0:01:56]}  Rb8 {[%clk 0:02:25]} 15. b3 {[%clk 0:01:35]}  Qa5 {[%clk 0:02:18]} 16. Rg1 {[%clk 0:01:26]}  Kh7 {[%clk 0:02:15]} 17. Bg5 {[%clk 0:01:18]}  Ng8 {[%clk 0:02:03]} 18. O-O-O {[%clk 0:01:02]}  Qxc3 {[%clk 0:01:55]} 19. Qxc3 {[%clk 0:00:51]}  Nxe2+ {[%clk 0:01:55]} 20. Kb2 {[%clk 0:00:51]}  Nxc3 {[%clk 0:01:55]} 21. Kxc3 {[%clk 0:00:52]}  gxf5 {[%clk 0:01:44]} 22. Rxd6 {[%clk 0:00:42]}  fxe4 {[%clk 0:01:44]} 23. Be3 {[%clk 0:00:38]}  Nf6 {[%clk 0:01:38]} 24. Rg5 {[%clk 0:00:32]}  Nd5+ {[%clk 0:01:36]} 25. Kb2 {[%clk 0:00:31]}  Nxe3 {[%clk 0:01:35]} 26. Rxh5+ {[%clk 0:00:30]}  Kg8 {[%clk 0:01:30]} 27. fxe3 {[%clk 0:00:30]}  Rbc8 {[%clk 0:01:25]} 28. Rg5 {[%clk 0:00:28]}  Rfd8 {[%clk 0:01:24]} 29. Rxd8+ {[%clk 0:00:22]}  Rxd8 {[%clk 0:01:25]} 30. h5 {[%clk 0:00:22]}  f6 {[%clk 0:01:24]} 31. Rg4 {[%clk 0:00:20]}  Kf7 {[%clk 0:01:24]} 32. Rxe4 {[%clk 0:00:20]}  Bh6 {[%clk 0:01:25]} 33. Ra4 {[%clk 0:00:18]}  Bxe3 {[%clk 0:01:25]} 34. Ra6 {[%clk 0:00:15]}  Bb6 {[%clk 0:01:24]} 35. a4 {[%clk 0:00:14]}  e4 {[%clk 0:01:25]} 36. a5 {[%clk 0:00:14]}  e3 {[%clk 0:01:24]} 37. axb6 {[%clk 0:00:12]}  axb6 {[%clk 0:01:16]} 38. Ra7+ {[%clk 0:00:06]}  Ke6 {[%clk 0:01:16]} 39. Ra1 {[%clk 0:00:05]}  f5 {[%clk 0:01:16]} 40. h6 {[%clk 0:00:04]}  f4 {[%clk 0:01:17]} 41. Rf1 {[%clk 0:00:02]}  Kf5 {[%clk 0:01:17]} 42. Kc3 {[%clk 0:00:02]}  Rh8 {[%clk 0:01:18]} 43. Kd3 {[%clk 0:00:02]}  Rxh6 {[%clk 0:01:18]} 44. Ra1 {[%clk 0:00:02]}  Rd6+ {[%clk 0:01:19]} 45. Kc3 {[%clk 0:00:02]}  Ke4 {[%clk 0:01:19]} 46. Ra4+ {[%clk 0:00:02]}  Kf3 {[%clk 0:01:20]} 47. Ra6 {[%clk 0:00:02]}  c5 {[%clk 0:01:19]} 48. Ra8 {[%clk 0:00:02]}  e2 {[%clk 0:01:20]} 49. Re8 {[%clk 0:00:03]}  Kf2 {[%clk 0:01:20]} 0-1


[Site "https://www.chess.com"]